bitfinex/quotes_ETHUSD_20241217
["timestamp","ask_amount","ask_price","bid_price","bid_amount"]
[1734424183235,0.86328919,4006.7,4005.9,0.85284933]
[1734424183499,1.03979766,4006.8,4005.9,0.85284933]
[1734424184006,1.90306009,4006.8,4006.0,0.28787451]
[1734424184347,0.86326243,4006.7,4006.1,0.16089745]
[1734424184530,0.86325705,4006.6,4006.1,0.16089745]
[1734424184693,0.86325705,4006.5,4005.6,0.14980062]
[1734424184898,0.86325705,4006.4,4005.6,0.14980062]
[1734424185135,0.86325705,4006.3,4005.7,0.7663]
[1734424185338,1.03979766,4006.8,4005.8,0.0249595]
[1734424185539,0.86318829,4006.8,4005.9,0.59072384]
[1734424185698,1.03979766,4006.9,4006.0,0.02495727]
[1734424185898,1.03979766,4006.9,4006.1,1.35702384]
[1734424186108,1.90297582,4006.9,4006.1,1.35702384]
[1734424186313,2.85735855,4007.1,4006.2,0.02495656]
[1734424186314,1.03979766,4007.1,4006.2,0.02495656]
[1734424186530,1.03979766,4007.3,4006.3,0.59072384]
[1734424186839,0.86296705,4007.3,4006.3,0.59072384]
[1734424187005,1.90276471,4007.3,4006.4,0.7663]
[1734424187204,0.86295508,4007.2,4006.4,1.09410374]
[1734424187429,1.80539766,4007.5,4006.8,3.0]
[1734424187679,1.29400809,4007.4,4006.9,0.79125428]
[1734424187960,1.03979766,4007.7,4006.9,1.09410361]
[1734424188164,1.03979766,4007.7,4007.2,3.0]
[1734424188461,1.80539766,4007.9,4007.3,0.3]
[1734424188632,2.15541984,4007.8,4006.9,1.06914933]
[1734424188851,0.86216817,4007.7,4006.9,1.06914933]
[1734424189019,1.03979766,4007.8,4006.9,0.7663]
[1734424189220,1.03979766,4007.8,4007.2,3.0]
[1734424189465,0.7656,4007.9,4007.2,3.0]
[1734424189672,0.7656,4007.9,4007.2,0.37663]
[1734424189876,0.7656,4007.9,4007.2,3.0]
[1734424190058,0.86186035,4007.8,4006.9,0.7663]
[1734424190238,0.7656,4007.9,4006.9,0.7663]
[1734424190624,0.7656,4007.9,4007.2,3.0]
[1734424190819,0.7656,4007.9,4006.9,0.7663]
[1734424192677,0.7656,4007.9,4007.0,0.02495302]
[1734424192828,0.7656,4007.9,4007.0,0.31282753]
[1734424193327,0.7656,4007.9,4006.9,0.7663]
[1734424193582,2.32997463,4007.7,4006.6,1.06914933]
[1734424193736,0.7656,4007.6,4006.9,3.0]
[1734424193945,0.7656,4007.6,4006.5,0.28787451]
[1734424194166,0.7656,4007.6,4006.3,0.7663]
[1734424194383,0.7656,4007.5,4006.1,0.30284933]
[1734424194583,0.7656,4007.4,4006.2,0.13570238]
[1734424194786,3.19216485,4007.3,4006.1,0.59072384]
[1734424194929,2.32997463,4007.3,4006.3,0.28787451]
[1734424195128,1.62659203,4007.2,4006.3,0.28787451]
[1734424195426,0.7656,4007.2,4006.0,0.30284933]
[1734424196027,0.8611104,4007.1,4006.5,3.0]
[1734424196227,0.7656,4007.2,4006.5,3.3]
[1734424196467,0.7656,4007.2,4006.6,0.28787451]
[1734424196772,0.7656,4007.2,4006.6,0.59072384]
[1734424197178,0.7656,4007.8,4006.7,0.0249551]
[1734424197322,0.7656,4007.8,4006.8,3.0]
[1734424197528,0.7656,4007.8,4006.6,0.59072384]
[1734424197776,0.7656,4007.8,4006.8,3.02495512]
[1734424198087,0.7656,4007.8,4006.7,0.16065687]
[1734424198226,0.7656,4007.8,4006.7,0.13570238]
[1734424198762,0.7656,4007.8,4007.0,3.0]
[1734424198968,0.7656,4007.8,4006.7,0.13570238]
[1734424199170,0.7656,4007.8,4006.8,0.14927262]
[1734424199335,0.7656,4007.8,4007.7,3.0]
[1734424199336,0.38949329,4007.8,4007.7,3.0]
[1734424199736,0.38949329,4007.8,4006.8,0.14927262]
[1734424200966,0.38949329,4007.8,4007.6,3.0]
[1734424201169,2.47290373,4007.8,4006.2,0.12382938]
[1734424201339,2.32997463,4007.4,4006.1,0.8198]
[1734424201742,2.32997463,4007.4,4005.8,1.10767451]
[1734424201946,2.32997463,4007.4,4005.9,0.30284933]
[1734424202254,0.8102,4007.2,4005.8,0.28787451]
[1734424202465,0.8102,4007.0,4005.8,0.42892689]
[1734424202974,0.8102,4006.9,4005.8,0.42892689]
[1734424203173,0.8102,4006.9,4005.8,0.45388797]
[1734424203344,0.8102,4006.9,4005.8,0.7567373]
[1734424203548,0.8102,4006.9,4006.6,3.0]
[1734424203782,0.8102,4006.9,4005.8,0.73177622]
[1734424204491,0.8102,4006.7,4005.8,0.59072384]
[1734424204724,0.8102,4006.6,4005.4,0.28787451]
[1734424204995,0.8102,4006.6,4005.9,0.59072384]
[1734424205551,0.8102,4006.6,4005.2,0.8198]
[1734424205877,0.8102,4006.6,4005.2,1.41052384]
[1734424206049,1.84999766,4006.6,4005.3,0.14105238]
[1734424206254,0.8102,4006.4,4006.0,3.0]
[1734424206753,0.8102,4006.2,4004.9,1.10767451]
[1734424206980,0.8102,4006.2,4005.0,0.30284933]
[1734424208278,0.8102,4006.2,4005.0,0.59072384]
[1734424209469,0.8102,4006.2,4005.1,0.28787451]
[1734424209653,0.8102,4006.2,4005.5,3.0]
[1734424209853,0.8102,4006.2,4005.3,0.8198]
[1734424209854,0.8102,4006.2,4005.9,3.0]
[1734424210294,0.8102,4006.2,4005.6,0.38198]
[1734424210594,0.8102,4006.7,4005.6,0.59072384]
[1734424210759,0.8102,4006.7,4005.7,0.59072384]
[1734424210957,0.8102,4006.7,4005.7,0.30284933]
[1734424211174,2.32997463,4006.8,4005.1,0.55]
[1734424211175,0.8102,4006.5,4005.1,0.55]
[1734424211559,0.86088803,4006.4,4005.1,0.55]
[1734424211764,0.8102,4006.3,4005.2,0.19605238]
[1734424212263,2.32997463,4006.0,4005.0,0.59072384]
[1734424212468,0.8102,4005.9,4005.0,0.59072384]
[1734424212897,0.8102,4005.9,4005.5,3.0]
[1734424213070,0.8102,4005.9,4005.0,0.59072384]
[1734424213765,0.8102,4005.9,4003.8,1.3698]
[1734424213973,0.8102,4005.9,4004.5,0.30284933]
[1734424214207,0.8102,4005.9,4004.6,0.28787451]
[1734424214410,0.8102,4005.9,4004.7,0.30284933]
[1734424214716,0.8102,4005.9,4004.8,0.28787451]
[1734424214919,0.8102,4005.9,4004.9,0.30284933]
[1734424215225,0.8102,4005.9,4004.9,0.59072384]
[1734424215599,0.8102,4005.9,4005.1,0.7554]
[1734424215913,0.7931,4006.4,4005.2,1.30081759]
[1734424216105,0.7931,4007.0,4005.4,0.55]
[1734424216266,0.7931,4007.0,4005.5,0.61389943]
[1734424216463,0.7931,4007.0,4005.6,0.55]
[1734424216679,0.7931,4007.0,4005.7,0.76211378]
[1734424216869,0.7931,4007.0,4006.1,3.0]
[1734424217271,0.7931,4007.0,4005.7,0.76211378]
[1734424217481,0.7931,4007.0,4006.1,3.0]
[1734424217676,0.7931,4007.0,4005.7,0.78528763]
[1734424217875,0.7931,4007.0,4005.8,0.55]
[1734424218316,0.7931,4007.0,4005.8,0.83787451]
[1734424218525,0.7931,4007.0,4006.0,0.7554]
[1734424218822,0.7931,4007.0,4006.0,1.34612384]
[1734424219019,0.7931,4007.0,4006.1,0.30284933]
[1734424219221,0.7931,4007.0,4006.6,3.0]
[1734424219620,0.7931,4007.0,4006.1,0.60358428]
[1734424219921,0.7931,4007.0,4006.2,0.13589843]
[1734424220222,0.7931,4007.0,4006.6,3.0]
[1734424220381,0.7931,4007.0,4006.2,0.13589843]
[1734424221006,2.32997463,4006.7,4006.2,0.13589843]
[1734424221339,0.7931,4006.6,4005.5,1.05824933]
[1734424221489,0.7931,4006.6,4005.6,0.59072384]
[1734424225124,2.32997463,4006.3,4005.6,0.59072384]
[1734424225450,0.7931,4006.2,4005.2,0.30284933]
[1734424226464,0.7931,4006.0,4005.2,0.59072384]
[1734424226746,0.7931,4006.0,4005.3,0.30284933]
[1734424228129,0.7931,4006.0,4005.5,3.0]
[1734424228324,0.7931,4006.0,4005.3,0.30284933]
[1734424228536,0.7931,4006.0,4005.5,3.0]
[1734424228738,0.7931,4006.0,4005.3,0.30284933]
[1734424228942,0.7931,4006.0,4005.5,3.0]
[1734424229142,0.7931,4006.0,4005.5,0.66192171]
[1734424229354,0.7931,4006.0,4005.5,0.30284933]
[1734424229565,0.7931,4006.0,4005.5,3.30284933]
[1734424229926,0.7931,4006.0,4005.5,0.30284933]
[1734424230154,0.7931,4006.0,4005.5,3.30284933]
[1734424230460,0.7931,4006.0,4004.7,0.7554]
[1734424230461,0.7931,4006.0,4005.0,0.30284933]
[1734424230660,0.7931,4006.0,4005.5,3.0]
[1734424231456,0.7837,4006.4,4005.5,1.69252384]
[1734424231633,0.7837,4006.8,4005.6,1.14072384]
[1734424233161,0.7837,4007.2,4005.9,0.8018]
[1734424233339,0.7837,4007.2,4006.0,0.60733176]
[1734424233530,0.7837,4007.2,4006.6,0.8018]
[1734424233735,0.7837,4007.6,4006.7,0.85284933]
[1734424233936,0.7837,4007.6,4006.8,0.16546493]
[1734424234136,0.7837,4007.6,4006.9,0.85284933]
[1734424235035,0.7837,4007.6,4007.0,0.30448243]
[1734424235243,0.7837,4007.6,4007.1,0.30284933]
[1734424235449,0.7837,4007.6,4007.4,3.0]
[1734424235965,0.7837,4007.6,4007.4,0.33028493]
[1734424236162,0.7837,4007.6,4007.4,3.0]
[1734424236546,0.7837,4007.6,4007.1,0.30284933]
[1734424236872,0.7837,4007.6,4007.4,3.0]
[1734424237073,0.7837,4007.6,4007.1,0.30284933]
[1734424237241,0.7837,4007.6,4007.4,3.0]
[1734424237465,0.7837,4007.6,4007.4,0.33028493]
[1734424237657,0.7837,4007.6,4007.4,3.0]
[1734424238057,0.7837,4007.6,4007.1,0.30284933]
[1734424238701,0.7837,4007.6,4007.4,3.0]
[1734424239095,0.7837,4007.6,4007.1,0.30284933]
[1734424239304,0.7837,4007.6,4007.4,3.0]
[1734424239491,0.7837,4007.6,4007.4,3.33028493]
[1734424239805,0.7837,4007.6,4007.4,0.33028493]
[1734424240017,0.7837,4007.6,4007.4,3.0]
[1734424240529,0.7783,4007.9,4007.4,3.0]
[1734424241533,0.7783,4007.9,4007.5,3.0]
[1734424241806,0.7783,4008.2,4007.5,0.6322746]
[1734424242026,0.7783,4008.2,4007.6,3.0]
[1734424242167,0.7783,4008.2,4007.5,0.60733176]
[1734424242366,0.7783,4008.2,4007.6,3.0]
[1734424242603,0.7783,4008.2,4007.5,0.74454494]
[1734424243014,0.7783,4008.2,4007.5,0.76949398]
[1734424243169,0.7783,4008.2,4007.6,3.0]
[1734424243736,0.7783,4008.2,4007.6,3.30448243]
[1734424243906,0.7783,4008.2,4007.6,0.30448243]
[1734424244109,0.7783,4008.2,4007.6,3.30448243]
[1734424244417,0.7783,4008.2,4007.6,0.67893692]
[1734424244735,0.7783,4008.2,4007.6,3.30448243]
[1734424245306,0.7783,4008.2,4007.6,0.30448243]
[1734424245510,0.7783,4008.2,4007.6,3.30448243]
[1734424245807,0.7783,4008.2,4007.6,0.30448243]
[1734424246408,0.7783,4008.2,4007.6,3.30448243]
[1734424246614,0.7783,4008.2,4007.6,3.67893692]
[1734424246766,0.7783,4008.2,4007.7,0.60733176]
[1734424246969,0.7783,4008.2,4008.0,3.0]
[1734424247529,0.7783,4008.2,4008.0,3.60733176]
[1734424247891,0.7783,4008.2,4008.0,0.60733176]
[1734424248100,0.7783,4008.2,4007.5,0.74454494]
[1734424248331,0.7783,4008.2,4008.0,3.0]
[1734424248693,0.7783,4008.2,4007.8,3.0]
[1734424248933,0.811,4008.1,4006.9,0.85284933]
[1734424249095,0.811,4008.1,4007.5,0.30284933]
[1734424250436,2.32997463,4007.9,4006.8,0.16546493]
[1734424250610,0.811,4007.8,4007.0,0.30284933]
[1734424250797,0.811,4007.8,4006.8,0.16546493]
[1734424250798,0.811,4007.4,4006.1,0.827]
[1734424250991,1.03979766,4008.2,4005.1,1.04240798]
[1734424250992,2.32997463,4007.1,4006.4,0.30284933]
[1734424251251,0.811,4007.0,4006.4,0.30284933]
[1734424251735,4.41342972,4008.0,4006.4,0.30284933]
[1734424251736,2.32997463,4006.7,4006.4,0.30284933]
[1734424251938,0.811,4006.6,4005.9,0.30284933]
[1734424254555,2.32997463,4006.3,4005.9,0.30284933]
[1734424254702,0.811,4006.2,4005.2,0.85284933]
[1734424255335,0.811,4006.2,4005.2,0.30284933]
[1734424255915,1.03979766,4006.6,4005.2,0.30284933]
[1734424255916,0.811,4005.8,4005.2,0.30284933]
[1734424256112,0.811,4005.8,4005.4,3.0]
[1734424256911,0.811,4005.8,4005.2,0.30284933]
[1734424256912,1.12509746,4005.8,4005.2,0.30284933]
[1734424257105,0.821,4005.7,4005.2,0.30284933]
[1734424258630,2.32997463,4005.5,4005.2,0.30284933]
[1734424260119,0.821,4005.7,4005.2,0.59171509]
[1734424260450,0.821,4005.7,4005.3,0.28886576]
[1734424260813,0.821,4005.7,4005.2,0.30284933]
[1734424261980,0.7744,4006.2,4005.4,3.0]
[1734424262135,0.7744,4006.2,4005.5,0.35917151]
[1734424262339,0.7744,4006.2,4005.5,3.59171509]
[1734424262540,0.7744,4006.2,4005.5,0.59171509]
[1734424263049,2.32997463,4006.7,4005.5,0.59171509]
[1734424263251,0.7744,4006.6,4005.6,0.55]
[1734424263568,0.7744,4006.6,4005.8,3.0]
[1734424263722,0.7744,4006.6,4005.9,0.38528493]
[1734424264054,0.7744,4006.6,4005.9,0.30284933]
[1734424266338,0.7744,4006.6,4005.5,0.59171509]
[1734424266536,0.7744,4006.6,4005.8,3.30284933]
[1734424266741,0.7744,4006.6,4005.8,0.30284933]
[1734424266944,0.7744,4006.6,4005.9,0.30284933]
[1734424267666,0.7744,4006.6,4005.9,0.63313426]
[1734424267872,0.7744,4006.6,4005.9,0.30284933]
[1734424268163,0.7744,4006.6,4005.8,3.0]
[1734424268527,2.08345509,4007.8,4005.6,0.30284933]
[1734424268528,2.32997463,4006.3,4005.6,0.30284933]
[1734424268728,2.32997463,4006.3,4003.6,0.5]
[1734424268729,0.7744,4006.2,4005.1,0.30284933]
[1734424268943,0.7744,4006.2,4005.1,0.59171509]
[1734424269162,0.7744,4006.2,4005.2,0.13712151]
[1734424269361,0.7744,4006.2,4005.8,3.0]
[1734424269571,0.7744,4005.8,4005.3,0.30284933]
[1734424270575,0.7744,4005.8,4003.5,0.02496669]
[1734424270576,0.7744,4005.4,4004.8,0.30284933]
[1734424270877,0.7744,4005.4,4004.7,0.30284933]
[1734424272446,0.7744,4005.4,4004.8,0.28886576]
[1734424272647,0.7744,4005.4,4004.9,0.73997084]
[1734424272847,0.7744,4005.4,4004.9,0.59171509]
[1734424273050,0.7744,4005.4,4005.0,3.0]
[1734424273251,0.7744,4005.4,4005.1,0.30284933]
[1734424274170,0.7744,4005.4,4005.1,0.59171509]
[1734424275994,0.7744,4005.4,4005.2,0.28886576]
[1734424276195,0.7744,4005.4,4005.3,0.66202084]
[1734424276381,0.7744,4005.4,4005.3,0.30284933]
[1734424277103,0.8079,4006.0,4005.3,0.30284933]
[1734424277468,0.8079,4006.0,4005.3,0.59171509]
[1734424278760,2.32997463,4005.9,4005.3,0.59171509]
[1734424278980,2.32997463,4005.9,4005.3,0.30284933]
[1734424279186,0.8079,4005.7,4005.0,3.0]
[1734424279499,0.31378746,4005.8,4004.8,0.28886576]
[1734424279500,2.32997463,4005.5,4004.8,0.28886576]
[1734424279705,0.8079,4005.6,4005.0,0.30284933]
[1734424281110,0.8079,4005.6,4005.0,4.34681509]
[1734424281270,0.8079,4006.1,4005.1,0.59171509]
[1734424281481,2.32997463,4005.9,4005.1,0.59171509]
[1734424281682,0.8079,4005.8,4005.1,0.59171509]
[1734424281888,0.41352606,4006.1,4005.1,0.30284933]
[1734424281889,0.8079,4005.4,4005.1,0.30284933]
[1734424282094,0.8079,4005.4,4004.6,3.0]
[1734424282288,0.8079,4005.4,4004.6,0.30284933]
[1734424282489,0.8079,4005.4,4004.6,3.30284933]
[1734424282712,0.8079,4005.4,4004.6,0.30284933]
[1734424282885,1.12168746,4005.4,4004.6,0.30284933]
[1734424283287,0.8079,4005.4,4004.6,0.30284933]
[1734424284778,2.32997463,4005.1,4004.6,0.30284933]
[1734424284993,0.8079,4005.0,4004.6,0.30284933]
[1734424285193,0.8079,4005.0,4004.6,0.59171509]
[1734424285419,0.8079,4005.0,4004.7,0.30284933]
[1734424285618,2.32997463,4005.5,4004.7,0.59171509]
[1734424285933,0.8079,4005.4,4004.7,0.59171509]
[1734424286826,0.8079,4005.4,4004.7,1.34681509]
[1734424287313,0.8079,4005.4,4004.9,3.0]
[1734424287514,0.8079,4005.4,4004.9,3.30284933]
[1734424287698,0.8079,4005.4,4004.9,0.30284933]
[1734424287903,0.8079,4005.4,4004.9,3.30284933]
[1734424288632,0.8079,4005.4,4004.9,0.30284933]
[1734424288813,0.8079,4005.4,4004.9,3.30284933]
[1734424289890,0.8079,4005.8,4005.0,0.30284933]
[1734424290228,0.8079,4005.8,4005.0,0.59171509]
[1734424292505,0.8079,4005.8,4005.1,0.7551]
[1734424292710,1.03979766,4006.1,4005.2,0.59171509]
[1734424292908,0.8079,4006.1,4005.2,0.59171509]
[1734424293108,0.8079,4006.1,4005.2,0.7263966]
[1734424293924,2.32997463,4006.3,4005.2,0.75136199]
[1734424294100,2.32997463,4006.3,4005.2,0.75136166]
[1734424294446,2.32997463,4006.3,4005.2,0.7263966]
[1734424294796,0.86129634,4006.2,4005.2,0.7263966]
[1734424295440,0.86129634,4006.2,4005.4,3.0]
[1734424295604,0.86129634,4006.2,4005.3,0.14814966]
[1734424295808,0.86129634,4006.2,4005.3,0.73986475]
[1734424296006,2.32997463,4005.9,4005.4,3.0]
[1734424296207,0.8079,4005.8,4005.1,0.7551]
[1734424296519,0.86259319,4005.7,4005.1,0.7551]
[1734424296727,1.84769766,4005.8,4004.6,0.55]
[1734424296927,1.03979766,4005.6,4004.7,1.04396576]
[1734424297114,1.82947621,4005.6,4004.7,1.34681509]
[1734424297438,3.19631958,4005.5,4004.7,1.34681509]
[1734424297598,1.03979766,4005.6,4004.7,1.34681509]
[1734424298537,3.19688416,4005.5,4004.7,1.34681509]
[1734424298758,0.8628346,4005.4,4004.7,1.34681509]
[1734424298896,1.03979766,4005.5,4004.7,1.5364966]
[1734424299240,3.19708026,4005.4,4004.7,0.59171509]
[1734424299540,4.00498026,4005.3,4004.7,0.59171509]
[1734424299739,2.1572826,4005.2,4004.7,0.59171509]
[1734424300338,1.84769766,4005.3,4004.7,0.59171509]
[1734424300531,0.86304768,4005.2,4004.7,0.7263966]
[1734424300734,1.03979766,4005.4,4004.7,0.7263966]
[1734424300949,1.03979766,4005.4,4004.7,0.59171509]
[1734424301440,3.19741821,4005.4,4004.7,0.59171509]
[1734424301663,0.86304822,4005.3,4004.7,0.59171509]
[1734424301969,0.8079,4005.2,4004.7,0.59171509]
[1734424302258,4.00531888,4005.2,4004.7,0.59171509]
[1734424302413,3.19741888,4005.1,4004.7,0.59171509]
[1734424302804,6.25679366,4005.1,4004.7,0.30284933]
[1734424303048,6.25679366,4005.1,4002.3,1.23406746]
[1734424303049,1.03979766,4004.9,4003.5,0.7551]
[1734424303262,1.03979766,4004.9,4003.7,0.28886576]
[1734424303405,3.19736942,4004.9,4003.8,0.30284933]
[1734424303757,0.8630287,4004.8,4003.9,0.28886576]
[1734424303902,3.19724757,4004.8,4004.0,0.30284933]
[1734424304097,2.32997463,4005.1,4004.1,0.28886576]
[1734424304098,1.03979766,4004.9,4004.1,0.28886576]
[1734424304333,1.03979766,4004.9,4004.2,0.30284933]
[1734424304527,0.8628933,4004.8,4004.3,0.28886576]
[1734424304736,1.03979766,4004.9,4004.4,0.30284933]
[1734424304936,0.86285849,4004.8,4004.4,0.59171509]
[1734424305109,1.03979766,4005.0,4004.4,0.59171509]
[1734424305313,3.19679374,4005.0,4004.5,0.28886576]
[1734424305544,1.03979766,4005.1,4004.6,0.30284933]
[1734424305838,3.19654669,4005.0,4004.6,0.30284933]
[1734424306044,0.86269961,4004.9,4004.6,0.30284933]
[1734424306202,1.03979766,4005.0,4004.6,0.30284933]
[1734424306403,2.32997463,4004.7,4003.6,1.05006576]
[1734424306605,1.63870419,4004.6,4003.6,0.28886576]
[1734424306920,2.32997463,4004.3,4003.6,0.28886576]
[1734424307531,1.63863298,4004.2,4002.7,0.7612]
[1734424307854,0.776,4004.2,4003.0,0.28886576]
[1734424308033,0.86265043,4004.1,4003.0,0.28886576]
[1734424308205,0.776,4004.2,4003.0,0.28886576]
[1734424308411,0.86241357,4004.1,4003.0,0.28886576]
[1734424308606,2.32997463,4003.9,4003.0,0.28886576]
[1734424308865,2.32997463,4003.1,4002.4,0.7612]
[1734424309345,1.61737925,4003.1,4002.4,1.39297445]
[1734424309552,1.61737925,4003.1,4002.5,0.63177445]
[1734424309734,2.32997463,4003.5,4002.5,0.63177445]
[1734424310109,2.32997463,4003.5,4002.6,0.55]
[1734424310448,2.32997463,4003.5,4002.8,0.55]
[1734424310608,2.32997463,4003.5,4002.8,0.86344323]
[1734424310811,0.776,4003.7,4003.0,0.55]
[1734424311016,0.776,4004.0,4003.2,0.55]
[1734424311309,3.10597463,4004.4,4003.4,0.55]
[1734424311546,3.10597463,4004.4,4003.6,0.55]
[1734424312575,3.10597463,4004.8,4003.6,0.63177445]
[1734424312847,3.10597463,4004.8,4003.8,0.55]
[1734424315647,0.776,4004.8,4004.0,0.55]
[1734424317147,0.776,4004.8,4004.0,0.545048]
[1734424317340,0.776,4004.8,4004.0,1.03885025]
[1734424317659,0.776,4004.8,4004.0,0.545048]
[1734424317812,0.776,4004.8,4003.9,0.7612]
[1734424318011,0.776,4004.8,4003.8,0.63177445]
[1734424318212,0.776,4004.8,4003.4,0.7612]
[1734424318213,3.10597463,4004.8,4003.4,0.7612]
[1734424318412,3.10597463,4004.8,4003.4,1.39297445]
[1734424318413,2.53901693,4004.7,4003.4,1.39297445]
[1734424318633,0.776,4004.5,4003.8,3.0]
[1734424318834,0.776,4004.5,4003.4,0.63177445]
[1734424319072,0.776,4004.5,4003.5,0.63177445]
[1734424320441,0.776,4004.5,4003.7,0.14087745]
[1734424321077,0.8267,4004.9,4003.8,0.31833122]
[1734424321282,0.8267,4004.9,4003.8,0.63177445]
[1734424321465,0.84973958,4004.8,4003.8,0.63177445]
[1734424321652,1.86649766,4004.9,4003.8,0.63177445]
[1734424321980,0.84976007,4004.8,4003.8,0.63177445]
[1734424322179,1.40260636,4004.9,4003.8,0.63177445]
[1734424324482,0.8267,4004.9,4004.0,3.0]
[1734424324789,0.8267,4005.3,4004.2,3.0]
[1734424325081,0.8267,4005.3,4004.3,0.63177445]
[1734424329370,1.86649766,4005.3,4004.3,0.63177445]
[1734424329696,0.8267,4005.3,4004.3,0.63177445]
[1734424330406,0.8267,4005.3,4004.3,0.9949519]
[1734424330569,0.84995433,4005.2,4004.3,0.63177445]
[1734424330760,0.8267,4005.3,4004.3,0.63177445]
[1734424331090,1.86649766,4005.1,4003.9,0.777]
[1734424331248,0.83724857,4005.0,4003.9,0.777]
[1734424331570,1.49687979,4005.0,4003.9,0.777]
[1734424331777,0.83724857,4004.9,4003.9,0.777]
[1734424332148,0.65963122,4005.0,4003.9,0.777]
[1734424332655,0.83725288,4004.9,4003.9,0.777]
[1734424332843,0.65963122,4005.0,4003.9,0.777]
[1734424333045,1.32286756,4004.9,4003.9,0.777]
[1734424333260,0.8267,4004.7,4003.6,0.777]
[1734424333456,0.8267,4004.7,4003.4,0.31344323]
[1734424333667,0.48561035,4004.9,4003.5,0.777]
[1734424333668,1.03979766,4004.9,4003.5,0.777]
[1734424333854,0.8267,4005.0,4003.7,0.777]
[1734424334186,0.8267,4005.4,4003.9,0.777]
[1734424334350,0.8267,4005.4,4004.0,0.63177445]
[1734424334545,0.8267,4005.4,4004.1,0.55]
[1734424334745,0.83718626,4005.3,4004.2,0.63177445]
[1734424334952,1.86649766,4005.4,4004.2,0.63177445]
[1734424335167,0.8267,4005.4,4004.3,0.55]
[1734424335368,0.8267,4005.4,4004.5,0.55]
[1734424335962,0.8267,4005.4,4004.5,0.86344323]
[1734424336458,0.8267,4005.4,4004.6,0.31344323]
[1734424336661,1.03979766,4005.7,4004.7,0.55]
[1734424336990,0.75,4005.7,4005.0,0.7994]
[1734424337242,1.84349766,4006.5,4005.4,0.8173]
[1734424337381,1.03979766,4006.9,4005.5,0.5693464]
[1734424337559,2.36629131,4007.0,4005.7,0.55]
[1734424337560,0.8037,4007.0,4005.7,0.55]
[1734424337796,0.8037,4007.0,4005.9,0.55]
[1734424338169,0.8037,4007.0,4005.9,1.18177445]
[1734424339355,1.22104723,4007.0,4005.9,1.18177445]
[1734424339569,2.32997463,4006.8,4005.7,0.55]
[1734424339893,2.32997463,4005.9,4005.1,0.31833122]
[1734424340005,2.32997463,4005.9,4003.8,3.11957531]
[1734424340006,2.32997463,4005.9,4005.2,0.8173]
[1734424340419,2.32997463,4005.9,4004.4,0.8173]
[1734424340660,0.8037,4006.2,4004.5,0.75761605]
[1734424340867,2.32997463,4005.9,4004.5,0.75761605]
[1734424342120,2.32997463,4005.9,4004.6,0.55]
[1734424342317,2.32997463,4005.9,4005.1,0.55]
[1734424342513,0.8037,4005.7,4005.1,0.55]
[1734424342755,0.62637253,4005.6,4005.1,0.55]
[1734424342914,0.62637253,4005.6,4004.9,3.0]
[1734424343283,0.8037,4005.7,4004.9,0.31833122]
[1734424343734,0.8037,4005.7,4005.0,0.55]
[1734424345441,0.8037,4005.7,4004.6,0.55]
[1734424345678,1.03979766,4005.6,4004.6,0.55]
[1734424346314,5.4603717,4005.6,4004.5,0.31344323]
[1734424346438,2.87326571,4005.5,4004.5,0.31344323]
[1734424346798,0.7826663,4005.5,4004.5,0.31344323]
[1734424347002,0.83627135,4005.4,4004.4,0.8173]
[1734424347204,2.32997463,4005.2,4004.2,0.31833122]
[1734424347501,0.8037,4005.1,4004.0,1.13074323]
[1734424348100,1.1552216,4005.1,4004.0,1.13074323]
[1734424348302,1.1552216,4005.1,4004.0,0.8173]
[1734424348437,0.83636796,4005.0,4003.8,0.31833122]
[1734424348639,2.32997463,4004.8,4003.8,0.31833122]
[1734424349799,2.32997463,4004.8,4003.9,0.55]
[1734424350002,2.74732186,4004.8,4003.9,0.55]
[1734424350534,2.74732186,4004.8,4003.7,0.55]
[1734424351538,0.8037,4004.7,4003.7,0.55]
[1734424352161,2.32997463,4004.4,4003.6,3.0]
[1734424352465,2.32997463,4004.4,4003.3,0.31833122]
[1734424352667,2.32997463,4004.4,4003.4,0.14490745]
[1734424352909,2.32997463,4004.4,4003.4,0.46323867]
[1734424353113,2.32997463,4004.4,4003.6,3.0]
[1734424353288,2.32997463,4004.4,4003.4,0.46323867]
[1734424353606,0.8037,4004.7,4003.6,3.0]
[1734424353774,1.26278195,4004.7,4003.5,0.55]
[1734424356045,1.26278195,4004.7,4003.5,3.55]
[1734424356177,0.8037,4004.7,4003.5,3.86833122]
[1734424356619,0.8037,4004.7,4003.5,0.86833122]
[1734424356875,0.8037,4004.7,4003.5,1.18177445]
[1734424357085,0.8037,4004.7,4003.7,0.55]
[1734424357428,0.8037,4004.7,4003.8,0.8173]
[1734424357739,0.8037,4004.7,4003.9,0.55]
[1734424358037,0.8037,4004.7,4003.8,0.55]
[1734424358038,0.98804977,4004.7,4003.8,0.55]
[1734424359232,0.8037,4004.7,4003.8,0.55]
[1734424359529,0.8037,4004.7,4003.8,0.31833122]
[1734424359844,0.8037,4005.0,4003.9,1.18177445]
[1734424360874,0.8037,4005.0,4004.1,0.55]
[1734424361129,0.8037,4005.4,4004.3,0.55]
[1734424361329,1.84349766,4005.9,4004.5,0.55]
[1734424361537,0.8037,4005.9,4004.6,0.8173]
[1734424361695,0.8037,4005.9,4004.9,0.55]
[1734424362036,0.8037,4006.2,4005.2,0.8173]
[1734424362191,0.8037,4006.2,4005.3,0.55]
[1734424363321,1.1443089,4006.2,4005.3,0.55]
[1734424365314,1.1443089,4006.2,4005.1,0.55]
[1734424365827,0.8037,4006.2,4005.1,0.55]
[1734424368727,0.8037,4006.2,4005.1,0.86833122]
[1734424368885,0.8037,4006.2,4005.3,0.55]
[1734424369084,0.8037,4006.2,4005.3,0.86833122]
[1734424369321,0.8037,4006.2,4005.4,0.8266]
[1734424369491,0.8037,4006.2,4005.5,0.55]
[1734424370511,0.01299,4005.8,4005.5,0.55]
[1734424370927,0.01299,4005.8,4005.7,0.55]
[1734424371118,0.01299,4005.8,4005.7,1.18177445]
[1734424378595,0.01299,4005.8,4005.7,2.00837445]